Workbook

Sheet Лист1
I1: К постановлению Администрации Североуральского городского округа от 03.02.2015г.№150
A2: Приложение № 2 к муниципальной программе Североуральского городского округа «Развитие жилищно-коммунального хозяйства и транспортного обслуживания населения, повышение энергетической эффективности и охрана окружающей среды в Североуральском городском округе» на 2014-2020 годы
A3: План мероприятий
A4: по выполнению муниципальной программы Североуральского городского округа
A5: «Развитие жилищно-коммунального хозяйства и транспортного обслуживания населения,
A6: повышение энергетической эффективности и охрана окружающей среды в Североуральском городском округе» на 2014-2020 годы
A8: № строки | B8: Наименование мероприятия/ Источники расходов на финансирование | C8: Объем расходов на выполнение мероприятия за счет всех источников ресурсного обеспечения, тыс. руб. | K8: Номер строки целевых показателей, на достижение которых направлены мероприятия
C9: Всего | D9: первый год | E9: второй год | F9: третий год | G9: четвертый год | H9: пятый год | I9: шестой год | J9: седьмой год
B10: ВСЕГО по муниципальной программе, в том числе: | C10: =SUM(C11:C13) -> 806523.9 | D10: 283826.9 | E10: 119021.3 | F10: 91013.3 | G10: 78165.6 | H10: 78165.6 | I10: 78165.6 | J10: 78165.6 | K10: Х
B11: местный бюджет | C11: =SUM(D11:J11) -> 615468.8 | D11: =SUM(D15+D19) -> 92792.8 | E11: =SUM(E15+E19) -> 119000.3 | F11: 91013.3 | G11: 78165.6 | H11: 78165.6 | I11: 78165.6 | J11: 78165.6
B12: областной бюджет | C12: =SUM(D12:J12) -> 109237.1 | D12: =SUM(D16+D20) -> 109216.1 | E12: =SUM(E16+E20) -> 21 | F12: =SUM(F16+F20) -> 0 | G12: =SUM(G16+G20) -> 0 | H12: =SUM(H16+H20) -> 0 | I12: =SUM(I16+I20) -> 0 | J12: =SUM(J16+J20) -> 0
B13: федеральный бюджет | C13: =SUM(D13:J13) -> 81818 | D13: =SUM(D21+D17) -> 81818 | E13: =SUM(E21+E17) -> 0 | F13: 0 | G13: 0 | H13: 0 | I13: 0 | J13: 0
B14: Капитальные вложения | C14: =SUM(C15:C17) -> 330701.7 | D14: =SUM(D15:D17) -> 232761.9 | E14: =SUM(E15:E17) -> 48956.9 | F14: 14150.5 | G14: 8708.1 | H14: 8708.1 | I14: 8708.1 | J14: 8708.1 | K14: Х
B15: местный бюджет | C15: =SUM(D15:J15) -> 142667.6 | D15: =D29+D96+D144+D167+D194+D227+D293+D312 -> 44727.8 | E15: 48956.9 | F15: 14150.5 | G15: 8708.1 | H15: 8708.1 | I15: 8708.1 | J15: 8708.1
B16: областной бюджет | C16: =SUM(D16:J16) -> 106216.1 | D16: =D97+D168+D30 -> 106216.1 | E16: =E97+E168 -> 0 | F16: 0 | G16: 0 | H16: 0 | I16: 0 | J16: 0
B17: федеральный бюджет | C17: =SUM(D17:J17) -> 81818 | D17: =D98+D169 -> 81818 | E17: 0 | F17: 0 | G17: 0 | H17: 0 | I17: 0 | J17: 0
B18: Прочие нужды | C18: =SUM(C19:C20) -> 475822.2 | D18: =SUM(D19:D20) -> 51065 | E18: =SUM(E19:E20) -> 70064.4 | F18: 76862.8 | G18: 69457.5 | H18: 69457.5 | I18: 69457.5 | J18: 69457.5 | K18: Х
B19: местный бюджет | C19: =SUM(D19:J19) -> 472801.2 | D19: =D48+D119+D153+D185+D236+D302+D331+D203+D284 -> 48065 | E19: 70043.4 | F19: 76862.8 | G19: 69457.5 | H19: 69457.5 | I19: 69457.5 | J19: 69457.5
B20: областной бюджет | C20: =SUM(D20:J20) -> 3021 | D20: =SUM(D120+D330) -> 3000 | E20: 21 | F20: 0 | G20: 0 | H20: 0 | I20: 0 | J20: 0
B21: федеральный бюджет | C21: =SUM(D21:J21) -> 0 | D21: 0 | E21: =E120 -> 0 | F21: 0 | G21: 0 | H21: 0 | I21: 0 | J21: 0
A22: Подпрограмма 1: Комплексное благоустройство территории Североуральского городского округа
B23: Всего по подпрограмме 1, | C23: =SUM(C25+C26) -> 193503.7 | D23: =SUM(D25+D26) -> 25725.2 | E23: =SUM(E25) -> 23630 | F23: 30055.3 | G23: 28523.3 | H23: 28523.3 | I23: 28523.3 | J23: 28523.3 | K23: Х
B24: в том числе:
B25: местный бюджет | C25: =SUM(D25:J25) -> 192289 | D25: =SUM(D29+D48) -> 24510.5 | E25: 23630 | F25: 30055.3 | G25: 28523.3 | H25: 28523.3 | I25: 28523.3 | J25: 28523.3
B26: областной бюджет | C26: =SUM(D26:J26) -> 1214.7 | D26: =SUM(D30) -> 1214.7 | E26: =SUM(E30) -> 0 | F26: 0 | G26: 0 | H26: 0 | I26: 0 | J26: 0
A27: 1. Капитальные вложения
B28: Всего по направлению «Капитальные вложения» всего, в том числе | C28: =SUM(D28:J28) -> 27569.3 | D28: =SUM(D29+D30) -> 3536.4 | E28: =SUM(E29) -> 2620.2 | F28: 6425.5 | G28: 3746.8 | H28: 3746.8 | I28: 3746.8 | J28: 3746.8 | K28: Х
B29: местный бюджет | C29: =SUM(D29:J29) -> 26354.6 | D29: =SUM(D40+D44) -> 2321.7 | E29: =SUM(E40+E44) -> 2620.2 | F29: 6425.5 | G29: 3746.8 | H29: 3746.8 | I29: 3746.8 | J29: 3746.8
B30: областной бюджет | C30: =SUM(D30:J30) -> 1214.7 | D30: =SUM(D37) -> 1214.7 | E30: =SUM(E37) -> 0 | F30: 0 | G30: 0 | H30: 0 | I30: 0 | J30: 0
A31: 1.1. Бюджетные инвестиции в объекты капитального строительства
B32: Бюджетные инвестиции в объекты капитального строительства всего, в том числе | C32: 0 | D32: 0 | E32: 0 | F32: 0 | G32: 0 | H32: 0 | I32: 0 | J32: 0 | K32: Х
B33: местный бюджет | C33: 0 | D33: 0 | E33: 0 | F33: 0 | G33: 0 | H33: 0 | I33: 0 | J33: 0
A34: 1.2. Иные капитальные вложения
B35: Всего | C35: =SUM(D35:J35) -> 27569.3 | D35: =SUM(D36:D37) -> 3536.4 | E35: =SUM(E36:E37) -> 2620.2 | F35: 6425.5 | G35: 3746.8 | H35: 3746.8 | I35: 3746.8 | J35: 3746.8 | K35: Х
B36: местный бюджет | C36: =SUM(D36:J36) -> 26354.6 | D36: =SUM(D40+D44) -> 2321.7 | E36: =SUM(E40+E44) -> 2620.2 | F36: 6425.5 | G36: 3746.8 | H36: 3746.8 | I36: 3746.8 | J36: 3746.8
B37: областной бюджет | C37: =SUM(D37:J37) -> 1214.7 | D37: =SUM(D41+D45) -> 1214.7 | E37: =SUM(E41+E45) -> 0 | F37: 0 | G37: 0 | H37: 0 | I37: 0 | J37: 0
A38: Мероприятие 1 Благоустройство дворовых территорий Североуральского городского округа
B39: Всего, из них | C39: =SUM(D39:J39) -> 27069.3 | D39: =D40+D41 -> 3536.4 | E39: =SUM(E40) -> 2120.2 | F39: 6425.5 | G39: 3746.8 | H39: 3746.8 | I39: 3746.8 | J39: 3746.8 | K39: 4
B40: местный бюджет | C40: =SUM(D40:J40) -> 25854.6 | D40: 2321.7 | E40: 2120.2 | F40: 6425.5 | G40: 3746.8 | H40: =SUM(G40) -> 3746.8 | I40: =SUM(H40) -> 3746.8 | J40: =SUM(I40) -> 3746.8
B41: областной бюджет | C41: =D41+E41+F41+G41+H41+I41+J41 -> 1214.7 | D41: 1214.7 | E41: 0 | F41: 0 | G41: 0 | H41: 0 | I41: 0 | J41: 0
A42: Мероприятие 2 Благоустройство парков и скверов в городе Североуральске
B43: Всего, из них | C43: =SUM(D43:J43) -> 500 | D43: =SUM(D44:D45) -> 0 | E43: =SUM(E44:E45) -> 500 | F43: 0 | G43: 0 | H43: 0 | I43: 0 | J43: 0 | K43: 5
B44: местный бюджет | C44: =SUM(D44:J44) -> 500 | D44: 0 | E44: 500 | F44: 0 | G44: 0 | H44: 0 | I44: 0 | J44: 0
B45: областной бюджет | C45: =D45+E45+F45+G45+H45+I45+J45 -> 0 | D45: 0 | E45: 0 | F45: 0 | G45: 0 | H45: 0 | I45: 0 | J45: 0
A46: 3. Прочие нужды
B47: Всего по направлению «Прочие нужды», всего, в том числе: | C47: =SUM(D47:J47) -> 165934.4 | D47: =SUM(D48) -> 22188.8 | E47: =SUM(E48) -> 21009.8 | F47: 23629.8 | G47: 24776.5 | H47: 24776.5 | I47: 24776.5 | J47: 24776.5 | K47: Х
B48: местный бюджет | C48: =SUM(D48:J48) -> 165934.4 | D48: =SUM(D55+D58+D61+D64+D51) -> 22188.8 | E48: =SUM(E55+E58+E61+E64+E51) -> 21009.8 | F48: 23629.8 | G48: 24776.5 | H48: 24776.5 | I48: 24776.5 | J48: 24776.5
A49: Мероприятие 1 Благоустройство дворовых территорий Североуральского городского округа
B50: Всего, из них | C50: =SUM(D50:J50) -> 310.9 | D50: =D51+D52 -> 310.9 | E50: =SUM(E51) -> 0 | F50: 0 | G50: 0 | H50: 0 | I50: 0 | J50: 0 | K50: 4
B51: местный бюджет | C51: =SUM(D51:J51) -> 310.9 | D51: 310.9 | E51: 0 | F51: 0 | G51: 0 | H51: =SUM(G51) -> 0 | I51: =SUM(H51) -> 0 | J51: =SUM(I51) -> 0
B52: областной бюджет | C52: =D52+E52+F52+G52+H52+I52+J52 -> 0 | D52: 0 | E52: 0 | F52: 0 | G52: 0 | H52: 0 | I52: 0 | J52: 0
A53: Мероприятие 3 - Уличное освещение
B54: Всего, из них | C54: =SUM(D54:J54) -> 89201 | D54: =SUM(D55) -> 12001 | E54: 11800 | F54: 12600 | G54: 13200 | H54: 13200 | I54: 13200 | J54: 13200 | K54: 7
B55: местный бюджет | C55: =SUM(D55:J55) -> 89201 | D55: 12001 | E55: 11800 | F55: 12600 | G55: 13200 | H55: =SUM(G55) -> 13200 | I55: =SUM(H55) -> 13200 | J55: =SUM(I55) -> 13200
A56: Мероприятие 4 - Озеленение (цветники, валка сухих деревьев)
B57: Всего, из них | C57: =SUM(D57:J57) -> 22050.9 | D57: =SUM(D58) -> 2890.9 | E57: 2800 | F57: 3150 | G57: 3302.5 | H57: 3302.5 | I57: 3302.5 | J57: 3302.5 | K57: 9
B58: местный бюджет | C58: =SUM(D58:J58) -> 22050.9 | D58: 2890.9 | E58: 2800 | F58: 3150 | G58: 3302.5 | H58: =SUM(G58) -> 3302.5 | I58: =SUM(H58) -> 3302.5 | J58: =SUM(I58) -> 3302.5
A59: Мероприятие 5 - Организация и содержание мест захоронения
B60: Всего, из них | C60: =SUM(D60:J60) -> 18230.8 | D60: =SUM(D61) -> 2263.1 | E60: 1800 | F60: 2724.5 | G60: 2860.8 | H60: 2860.8 | I60: 2860.8 | J60: 2860.8 | K60: 14
B61: местный бюджет | C61: =SUM(D61:J61) -> 18230.8 | D61: 2263.1 | E61: 1800 | F61: 2724.5 | G61: 2860.8 | H61: =SUM(G61) -> 2860.8 | I61: =SUM(H61) -> 2860.8 | J61: =SUM(I61) -> 2860.8
A62: Мероприятие 6 - Прочие мероприятия по благоустройству
B63: Всего, в том числе: | C63: =SUM(D63:J63) -> 36140.8 | D63: =SUM(D64) -> 4722.9 | E63: 4609.8 | F63: =SUM(F64) -> 5155.3 | G63: 5413.2 | H63: 5413.2 | I63: 5413.2 | J63: 5413.2 | K63: 5,9,11,12,13,15
B64: местный бюджет | C64: =SUM(D64:J64) -> 36140.8 | D64: =SUM(D67+D70+D73+D76+D79+D85+D82+D88) -> 4722.9 | E64: =SUM(E67+E70+E73+E76+E79+E85+E82+E88) -> 4609.8 | F64: 5155.3 | G64: 5413.2 | H64: 5413.2 | I64: 5413.2 | J64: 5413.2
A65: - Содержание памятников
B66: Всего: | C66: =SUM(C67) -> 2903.2 | D66: 369.2 | E66: 350 | F66: 420 | G66: 441 | H66: 441 | I66: 441 | J66: 441 | K66: 15
B67: местный бюджет | C67: =SUM(D67:J67) -> 2903.2 | D67: 369.2 | E67: 350 | F67: 420 | G67: 441 | H67: =SUM(G67) -> 441 | I67: =SUM(H67) -> 441 | J67: =SUM(I67) -> 441
A68: - Проведение комплекса профилактических работ по уходу за объектами благоустройства
B69: Всего: | C69: =SUM(C70) -> 7854.9 | D69: =SUM(D70) -> 1098.7 | E69: =SUM(E70) -> 750 | F69: 1155 | G69: 1212.8 | H69: 1212.8 | I69: 1212.8 | J69: 1212.8 | K69: 5
B70: местный бюджет | C70: =SUM(D70:J70) -> 7854.9 | D70: 1098.7 | E70: 750 | F70: 1155 | G70: 1212.8 | H70: =SUM(G70) -> 1212.8 | I70: =SUM(H70) -> 1212.8 | J70: =SUM(I70) -> 1212.8
A71: - Регулирование численности безнадзорных животных
B72: Всего: | C72: =SUM(C73) -> 4516.3 | D72: =SUM(D73) -> 500 | E72: =SUM(E73) -> 550 | F72: 666.3 | G72: 700 | H72: 700 | I72: 700 | J72: 700 | K72: 11
B73: местный бюджет | C73: =SUM(D73:J73) -> 4516.3 | D73: 500 | E73: 550 | F73: 666.3 | G73: 700 | H73: 700 | I73: =SUM(H73) -> 700 | J73: =SUM(I73) -> 700
A74: - Содержание биоямы (скотомогильник)
B75: Всего: | C75: =SUM(C76) -> 1085.2 | D75: =SUM(D76) -> 116.1 | E75: =SUM(E76) -> 150 | F75: 157.5 | G75: 165.4 | H75: 165.4 | I75: 165.4 | J75: 165.4 | K75: 13
B76: местный бюджет | C76: =SUM(D76:J76) -> 1085.2 | D76: 116.1 | E76: 150 | F76: 157.5 | G76: 165.4 | H76: 165.4 | I76: =SUM(H76) -> 165.4 | J76: =SUM(I76) -> 165.4
A77: - Обустройство и эксплуатация новогодних городков
B78: Всего: | C78: =SUM(C79) -> 15171.2 | D78: =SUM(D79) -> 1685.5 | E78: =SUM(E79) -> 1829.8 | F78: 2241.5 | G78: 2353.6 | H78: 2353.6 | I78: 2353.6 | J78: 2353.6 | K78: 5
B79: местный бюджет | C79: =SUM(D79:J79) -> 15171.2 | D79: 1685.5 | E79: 1829.8 | F79: 2241.5 | G79: 2353.6 | H79: 2353.6 | I79: =SUM(H79) -> 2353.6 | J79: =SUM(I79) -> 2353.6
A80: - Приобретение декоративного освещения для улиц города Североуральска
B81: Всего: | C81: =SUM(C82) -> 1373.4 | D81: =SUM(D82) -> 773.4 | E81: =SUM(E82) -> 600 | F81: 0 | G81: 0 | H81: 0 | I81: 0 | J81: 0 | K81: 5
B82: местный бюджет | C82: =SUM(D82:J82) -> 1373.4 | D82: 773.4 | E82: 600 | F82: 0 | G82: 0 | H82: =SUM(G82) -> 0 | I82: =SUM(H82) -> 0 | J82: =SUM(I82) -> 0
A83: - Акарицидная обработка общественных мест
B84: Всего: | C84: =SUM(C85) -> 2030.2 | D84: =SUM(D85) -> 92 | E84: =SUM(E85) -> 300 | F84: 315 | G84: 330.8 | H84: 330.8 | I84: 330.8 | J84: 330.8 | K84: 12
B85: местный бюджет | C85: =SUM(D85:J85) -> 2030.2 | D85: 92 | E85: 300 | F85: 315 | G85: 330.8 | H85: 330.8 | I85: =SUM(H85) -> 330.8 | J85: =SUM(I85) -> 330.8
A86: - Приобретение грунта плодородного (земли садовой)
B87: Всего: | C87: =SUM(C88) -> 1206.4 | D87: =SUM(D88) -> 88 | E87: =SUM(E88) -> 80 | F87: 200 | G87: 209.6 | H87: 209.6 | I87: 209.6 | J87: 209.6 | K87: 9
B88: местный бюджет | C88: =SUM(D88:J88) -> 1206.4 | D88: 88 | E88: 80 | F88: 200 | G88: 209.6 | H88: =SUM(G88) -> 209.6 | I88: =SUM(H88) -> 209.6 | J88: =SUM(I88) -> 209.6
A89: Подпрограмма 2: Муниципальная программа по энергосбережению и повышению энергетической эффективности объектов Североуральского городского округа
B90: Всего по подпрограмме 2, в том числе | C90: =SUM(D90:J90) -> 71348.2 | D90: =SUM(D91:D93) -> 9165.5 | E90: =SUM(E91:E93) -> 4852.5 | F90: 11025 | G90: 11576.3 | H90: 11576.3 | I90: 11576.3 | J90: 11576.3 | K90: Х
B91: местный бюджет | C91: =SUM(D91:J91) -> 65003.8 | D91: =SUM(D96+D119) -> 2821.1 | E91: =SUM(E96+E119) -> 4852.5 | F91: =F96+F119 -> 11025 | G91: =SUM(G96+G119) -> 11576.3 | H91: =SUM(H96+H119) -> 11576.3 | I91: =SUM(I96+I119) -> 11576.3 | J91: =SUM(J96+J119) -> 11576.3
B92: областной бюджет | C92: =SUM(D92:J92) -> 6344.4 | D92: =SUM(D97+D120) -> 6344.4 | E92: =SUM(E97+E120) -> 0 | F92: 0 | G92: 0 | H92: 0 | I92: 0 | J92: 0
B93: федеральный бюджет | C93: =SUM(D93:J93) -> 0 | D93: 0 | E93: =SUM(E98+E120) -> 0 | F93: 0 | G93: 0 | H93: 0 | I93: 0 | J93: 0
A94: 1. Капитальные вложения
B95: Всего по направлению «Капитальные вложения», всего, в том числе | C95: =SUM(C96:C98) -> 28743.8 | D95: =SUM(D96:D98) -> 4173.6 | E95: =SUM(E96:E98) -> 0 | F95: 4725 | G95: 4961.3 | H95: 4961.3 | I95: 4961.3 | J95: 4961.3 | K95: Х
B96: местный бюджет | C96: =SUM(D96:J96) -> 25399.4 | D96: =SUM(D105) -> 829.2 | E96: =SUM(E105) -> 0 | F96: 4725 | G96: 4961.3 | H96: 4961.3 | I96: 4961.3 | J96: 4961.3
B97: областной бюджет | C97: =SUM(D97:J97) -> 3344.4 | D97: =SUM(D106) -> 3344.4 | E97: =SUM(E106) -> 0 | F97: 0 | G97: 0 | H97: 0 | I97: 0 | J97: 0
B98: федеральный бюджет | C98: =SUM(D98:J98) -> 0 | D98: =SUM(D107) -> 0 | E98: =SUM(E107) -> 0 | F98: 0 | G98: 0 | H98: 0 | I98: 0 | J98: 0
A99: 1.1. Бюджетные инвестиции в объекты капитального строительства
B100: Бюджетные инвестиции в объекты капитального строительства всего, в том числе | C100: 0 | D100: 0 | E100: 0 | F100: 0 | G100: 0 | H100: 0 | I100: 0 | J100: 0 | K100: Х
B101: местный бюджет | C101: 0 | D101: 0 | E101: 0 | F101: 0 | G101: 0 | H101: 0 | I101: 0 | J101: 0
B102: областной бюджет
A103: 1.2. Иные капитальные вложения
B104: Всего, в том числе | C104: =SUM(C105:C107) -> 28743.8 | D104: =SUM(D105:D107) -> 4173.6 | E104: =SUM(E105:E107) -> 0 | F104: 4725 | G104: 4961.3 | H104: 4961.3 | I104: 4961.3 | J104: 4961.3 | K104: Х
B105: местный бюджет | C105: =SUM(D105:J105) -> 25399.4 | D105: =SUM(D110+D115) -> 829.2 | E105: =SUM(E110+E115) -> 0 | F105: 4725 | G105: 4961.3 | H105: 4961.3 | I105: 4961.3 | J105: 4961.3
B106: областной бюджет | C106: =SUM(D106:J106) -> 3344.4 | D106: =SUM(D111+D116) -> 3344.4 | E106: =SUM(E111+E116) -> 0 | F106: 0 | G106: 0 | H106: 0 | I106: 0 | J106: 0
B107: федеральный бюджет | C107: =SUM(D107:J107) -> 0 | D107: =SUM(D112) -> 0 | E107: =SUM(E112) -> 0 | F107: 0 | G107: 0 | H107: 0 | I107: 0 | J107: 0
A108: Мероприятие 7- Реконструкция, модернизация водопроводных сетей, сетей системы водоотведения с заменой (без замены) оборудования с более высоким КПД, установка регулируемого привода, реконструкция тепловых сетей, в том числе тепловых пунктов, котельных
B109: Всего, из них | C109: =SUM(C110:C112) -> 27607.6 | D109: =SUM(D110:D112) -> 3037.4 | E109: =SUM(E110:E112) -> 0 | F109: 4725 | G109: 4961.3 | H109: 4961.3 | I109: 4961.3 | J109: 4961.3 | K109: 27
B110: местный бюджет | C110: =SUM(D110:J110) -> 24851.2 | D110: 281 | E110: 0 | F110: 4725 | G110: 4961.3 | H110: =SUM(G110) -> 4961.3 | I110: 4961.3 | J110: 4961.3
B111: областной бюджет | C111: =SUM(D111:J111) -> 2756.4 | D111: 2756.4 | E111: 0 | F111: =SUM(E111*1.05) -> 0 | G111: 0 | H111: 0 | I111: 0 | J111: 0
B112: федеральный бюджет | C112: =SUM(D112:J112) -> 0 | D112: 0 | E112: 0 | F112: 0 | G112: =SUM(F112) -> 0 | H112: =SUM(G112) -> 0 | I112: =SUM(H112) -> 0 | J112: =SUM(I112) -> 0
A113: Мероприятие 9 - Закупка и установка осветительного оборудования с заменой неэффективного на энергосберегающее, в том числе замена ламп накаливания на энергосберегающие, модернизация сетей уличного освещения, проектно-сметные работы, экспертиза проектно-сметной документации
B114: всего, из них: | C114: =SUM(C115:C116) -> 1136.2 | D114: =SUM(D115:D116) -> 1136.2 | E114: =SUM(E115:E116) -> 0 | F114: 0 | G114: 0 | H114: 0 | I114: 0 | J114: 0 | K114: 26
B115: местный бюджет | C115: =SUM(D115:J115) -> 548.2 | D115: 548.2 | E115: 0 | F115: 0 | G115: 0 | H115: =SUM(G115) -> 0 | I115: 0 | J115: 0
B116: областной бюджет | C116: =SUM(D116:J116) -> 588 | D116: 588 | E116: 0 | F116: 0 | G116: 0 | H116: 0 | I116: 0 | J116: 0
A117: 3. Прочие нужды
B118: Всего по направлению «Прочие нужды», всего, в том числе: | C118: =SUM(D118:J118) -> 42604.4 | D118: =SUM(D119:D120) -> 4991.9 | E118: =SUM(E119:E120) -> 4852.5 | F118: 6300 | G118: 6615 | H118: 6615 | I118: 6615 | J118: 6615 | K118: Х
B119: местный бюджет | C119: =SUM(D119:J119) -> 39604.4 | D119: =SUM(D123+D128+D132+D138+D135) -> 1991.9 | E119: 4852.5 | F119: 6300 | G119: 6615 | H119: 6615 | I119: 6615 | J119: 6615
B120: областной бюджет | C120: =SUM(D120:J120) -> 3000 | D120: =SUM(D129+D124) -> 3000 | E120: 0 | F120: 0 | G120: 0 | H120: 0 | I120: 0 | J120: 0
A121: Мероприятие 8 - Оснащение зданий (строений, сооружений), находящихся в муниципальной собственности, многоквартирных жилых домов, жилых помещений, квартир приборами учета используемых энергетических ресурсов, в том числе разработка проектно-сметной документации
B122: всего, в том числе: | C122: =SUM(D122:J122) -> 21880 | D122: =SUM(D123:D124) -> 4200 | E122: 1300 | F122: 3150 | G122: 3307.5 | H122: 3307.5 | I122: 3307.5 | J122: 3307.5 | K122: 19,21,22,23,24
B123: местный бюджет | C123: =SUM(D123:J123) -> 18880 | D123: 1200 | E123: 1300 | F123: 3150 | G123: 3307.5 | H123: =SUM(G123) -> 3307.5 | I123: =SUM(H123) -> 3307.5 | J123: =SUM(I123) -> 3307.5
B124: областной бюджет | C124: =SUM(D124:J124) -> 3000 | D124: 3000 | E124: =SUM(E125) -> 0 | F124: 0 | G124: 0 | H124: 0 | I124: 0 | J124: 0
B125: федеральный бюджет | C125: =SUM(D125:J125) -> 0 | D125: 0 | E125: 0 | F125: 0 | G125: =SUM(F125) -> 0 | H125: =SUM(G125) -> 0 | I125: =SUM(H125) -> 0 | J125: =SUM(I125) -> 0
A126: Мероприятие 9 - Закупка и установка осветительного оборудования с заменой неэффективного на энергосберегающее, в том числе замена ламп накаливания на энергосберегающие, модернизация сетей уличного освещения, проектно-сметные работы, экспертиза проектно-сметной документации
B127: всего, из них: | C127: =SUM(C128:C129) -> 19791.9 | D127: =SUM(D128:D129) -> 411.9 | E127: =SUM(E128:E129) -> 3000 | F127: 3150 | G127: 3307.5 | H127: 3307.5 | I127: 3307.5 | J127: 3307.5 | K127: 26
B128: местный бюджет | C128: =SUM(D128:J128) -> 19791.9 | D128: 411.9 | E128: 3000 | F128: 3150 | G128: 3307.5 | H128: =SUM(G128) -> 3307.5 | I128: 3307.5 | J128: 3307.5
B129: областной бюджет | C129: =SUM(D129:J129) -> 0 | D129: 0 | E129: 0 | F129: 0 | G129: 0 | H129: 0 | I129: 0 | J129: 0
A130: Мероприятие 10 - Разработка схемы водоснабжения Североуральского городского округа
B131: всего, из них: | C131: =SUM(D131:J131) -> 380 | D131: =SUM(D132) -> 380 | E131: =SUM(E132) -> 0 | F131: 0 | G131: 0 | H131: 0 | I131: 0 | J131: 0 | K131: 28
B132: местный бюджет | C132: =SUM(D132:J132) -> 380 | D132: 380 | E132: 0 | F132: 0 | G132: =SUM(F132) -> 0 | H132: =SUM(G132) -> 0 | I132: =SUM(H132) -> 0 | J132: =SUM(I132) -> 0
A133: Мероприятие 11 - Разработка и экспертиза проектно-сметной документации на строительство сетей водоснабжения микрорайонов Южный и Горный
B134: всего, из них: | C134: =SUM(D134:J134) -> 500 | D134: =SUM(D135) -> 0 | E134: =SUM(E135) -> 500 | F134: 0 | G134: 0 | H134: 0 | I134: 0 | J134: 0 | K134: 29
B135: местный бюджет | C135: =SUM(D135:J135) -> 500 | D135: 0 | E135: 500 | F135: 0 | G135: =SUM(F135) -> 0 | H135: =SUM(G135) -> 0 | I135: =SUM(H135) -> 0 | J135: =SUM(I135) -> 0
A136: Мероприятие 12 - Прочие мероприятия (оформление актов выбора трассы под строительство водопроводов, сетей уличного освещения, газопроводов и т.п.)
B137: всего, из них: | C137: =SUM(D137:J137) -> 52.5 | D137: =SUM(D138) -> 0 | E137: =SUM(E138) -> 52.5 | F137: 0 | G137: 0 | H137: 0 | I137: 0 | J137: 0 | K137: 30
B138: местный бюджет | C138: =SUM(D138:J138) -> 52.5 | D138: 0 | E138: 52.5 | F138: 0 | G138: =SUM(F138) -> 0 | H138: =SUM(G138) -> 0 | I138: =SUM(H138) -> 0 | J138: =SUM(I138) -> 0
A139: Подпрограмма 3: Развитие лесного хозяйства на территории Североуральского городского округа
B140: Всего по подпрограмме 1, всего, в том числе | C140: =SUM(C141:C141) -> 1949.1 | D140: =SUM(D141) -> 774.1 | E140: =SUM(E141) -> 132 | F140: 200.6 | G140: 210.6 | H140: 210.6 | I140: 210.6 | J140: 210.6 | K140: Х
B141: местный бюджет | C141: =SUM(D141:J141) -> 1949.1 | D141: =SUM(D153) -> 774.1 | E141: =SUM(E153) -> 132 | F141: 200.6 | G141: 210.6 | H141: 210.6 | I141: 210.6 | J141: 210.6
A142: 1. Капитальные вложения
B143: Всего по направлению «Капитальные вложения», всего, в том числе | C143: 0 | D143: 0 | E143: 0 | F143: 0 | G143: 0 | H143: 0 | I143: 0 | J143: 0 | K143: Х
B144: местный бюджет | C144: 0 | D144: 0 | E144: 0 | F144: 0 | G144: 0 | H144: 0 | I144: 0 | J144: 0
A145: 1.1. Бюджетные инвестиции в объекты капитального строительства
B146: Бюджетные инвестиции в объекты капитального строительства всего, в том числе: | C146: =SUM(C147) -> 0 | D146: =SUM(D147) -> 0 | E146: 0 | F146: 0 | G146: 0 | H146: 0 | I146: 0 | J146: 0 | K146: Х
B147: местный бюджет | C147: 0 | D147: 0 | E147: 0 | F147: 0 | G147: 0 | H147: 0 | I147: 0 | J147: 0
A148: 1.2. Иные капитальные вложения
B149: Всего, в том числе: | C149: =SUM(A151) -> 0 | D149: 0 | E149: 0 | F149: 0 | G149: 0 | H149: 0 | I149: 0 | J149: 0 | K149: Х
B150: местный бюджет | C150: 0 | D150: 0 | E150: 0 | F150: 0 | G150: 0 | H150: 0 | I150: 0 | J150: 0
A151: 3. Прочие нужды
B152: Всего, из них | C152: =SUM(C153:C153) -> 1949.1 | D152: 774.1 | E152: 132 | F152: 200.6 | G152: 210.6 | H152: 210.6 | I152: 210.6 | J152: 210.6 | K152: Х
B153: местный бюджет | C153: =SUM(D153:J153) -> 1949.1 | D153: =SUM(D156) -> 774.1 | E153: =SUM(E156) -> 132 | F153: 200.6 | G153: 210.6 | H153: 210.6 | I153: 210.6 | J153: 210.6
A154: Мероприятие 13 - Развитие лесного хозяйства на территории Североуральского городского округа
B155: Всего, в том числе: | C155: =SUM(D155:J155) -> 1949.1 | D155: =SUM(D156) -> 774.1 | E155: =SUM(E156) -> 132 | F155: 200.6 | G155: 210.6 | H155: 210.6 | I155: 210.6 | J155: 210.6 | K155: 34
B156: местный бюджет | C156: =SUM(D156:J156) -> 1949.1 | D156: =SUM(D159) -> 774.1 | E156: =SUM(E159) -> 132 | F156: 200.6 | G156: 210.6 | H156: 210.6 | I156: 210.6 | J156: 210.6
A157: - Межевание городских лесов, постановка на кадастровый учет
B158: Всего: | C158: =SUM(C159) -> 1949.1 | D158: =SUM(D159) -> 774.1 | E158: =SUM(E159) -> 132 | F158: 200.6 | G158: 210.6 | H158: 210.6 | I158: 210.6 | J158: 210.6 | K158: 34
B159: местный бюджет | C159: =SUM(D159:J159) -> 1949.1 | D159: 774.1 | E159: 132 | F159: 200.6 | G159: 210.6 | H159: =SUM(G159) -> 210.6 | I159: =SUM(H159) -> 210.6 | J159: =SUM(I159) -> 210.6
A160: Подпрограмма 4 : Переселение граждан на территории Североуральского городского округа из аварийного жилищного фонда с учетом необходимости развития малоэтажного жилищного строительства
B161: Всего по подпрограмме 4, всего, в том числе | C161: =SUM(C162:C164) -> 268725.6 | D161: =SUM(D162:D164) -> 223750 | E161: 44975.6 | F161: 0 | G161: 0 | H161: 0 | I161: 0 | J161: 0 | K161: Х
B162: местный бюджет | C162: =SUM(D162:J162) -> 85250.6 | D162: =SUM(D167+D185) -> 40275 | E162: =SUM(E167+E185) -> 44975.6 | F162: 0 | G162: 0 | H162: 0 | I162: 0 | J162: 0
B163: областной бюджет | C163: =SUM(D163:J163) -> 101657 | D163: =SUM(D168) -> 101657 | E163: =SUM(E168) -> 0 | F163: 0 | G163: 0 | H163: 0 | I163: 0 | J163: 0
B164: федеральный бюджет | C164: =SUM(D164:J164) -> 81818 | D164: =SUM(D169) -> 81818 | E164: =SUM(E169) -> 0 | F164: 0 | G164: 0 | H164: 0 | I164: 0 | J164: 0
A165: 1. Капитальные вложения
B166: Всего по направлению «Капитальные вложения», всего, в том числе | C166: =SUM(C167:C169) -> 268325.6 | D166: =SUM(D167:D169) -> 223750 | E166: =SUM(E167:E169) -> 44575.6 | F166: 0 | G166: 0 | H166: 0 | I166: 0 | J166: 0 | K166: Х
B167: местный бюджет | C167: =SUM(D167:J167) -> 84850.6 | D167: =SUM(D180) -> 40275 | E167: =SUM(E180) -> 44575.6 | F167: 0 | G167: 0 | H167: 0 | I167: 0 | J167: 0
B168: областной бюджет | C168: =SUM(D168:J168) -> 101657 | D168: =SUM(D181) -> 101657 | E168: =SUM(E181) -> 0 | F168: 0 | G168: 0 | H168: 0 | I168: 0 | J168: 0
B169: федеральный бюджет | C169: =SUM(D169:J169) -> 81818 | D169: =SUM(D182) -> 81818 | E169: =SUM(E182) -> 0 | F169: 0 | G169: 0 | H169: 0 | I169: 0 | J169: 0
A170: 1.1. Бюджетные инвестиции в объекты капитального строительства
B171: Бюджетные инвестиции в объекты капитального строительства всего, в том числе: | C171: =SUM(C172) -> 0 | D171: =SUM(D172) -> 0 | E171: 0 | F171: 0 | G171: 0 | H171: 0 | I171: 0 | J171: 0 | K171: Х
B172: местный бюджет | C172: 0 | D172: 0 | E172: 0 | F172: 0 | G172: 0 | H172: 0 | I172: 0 | J172: 0
A173: 1.2. Иные капитальные вложения
B174: Всего, в том числе: | C174: =SUM(D174:J174) -> 254765.5 | D174: =SUM(D175:D177) -> 210189.9 | E174: =SUM(E175:E177) -> 44575.6 | F174: 0 | G174: 0 | H174: 0 | I174: 0 | J174: 0 | K174: Х
B175: местный бюджет | C175: =SUM(D175:J175) -> 84850.6 | D175: =SUM(D180) -> 40275 | E175: 44575.6 | F175: 0 | G175: 0 | H175: 0 | I175: 0 | J175: 0
B176: областной бюджет | C176: =SUM(D176:J176) -> 101657 | D176: =SUM(D181) -> 101657 | E176: =SUM(E181) -> 0 | F176: 0 | G176: 0 | H176: 0 | I176: 0 | J176: 0
B177: федеральный бюджет | C177: =SUM(D177:J177) -> 68257.9 | D177: 68257.9 | E177: =SUM(E182) -> 0 | F177: 0 | G177: 0 | H177: 0 | I177: 0 | J177: 0
A178: Мероприятие 14 - Переселение граждан на территории Североуральского городского округа из аварийного жилищного фонда с учетом необходимости развития малоэтажного жилищного строительства
B179: Всего по направлению «Капитальные вложения», всего, в том числе | C179: =SUM(D179:J179) -> 268325.6 | D179: =SUM(D180:D182) -> 223750 | E179: =SUM(E180:E182) -> 44575.6 | F179: 0 | G179: 0 | H179: 0 | I179: 0 | J179: 0 | K179: 38,40,41
B180: местный бюджет | C180: =SUM(D180:J180) -> 84850.6 | D180: 40275 | E180: 44575.6 | F180: 0 | G180: 0 | H180: 0 | I180: 0 | J180: 0
B181: областной бюджет | C181: =SUM(D181:J181) -> 101657 | D181: 101657 | E181: 0 | F181: 0 | G181: 0 | H181: 0 | I181: 0 | J181: 0
B182: федеральный бюджет | C182: =SUM(D182:J182) -> 81818 | D182: 81818 | E182: 0 | F182: 0 | G182: 0 | H182: 0 | I182: 0 | J182: 0
A183: 3. Прочие нужды
B184: Всего, в том числе: | C184: =SUM(D184:J184) -> 400 | D184: =SUM(D185) -> 0 | E184: =SUM(E185) -> 400 | F184: 0 | G184: 0 | H184: 0 | I184: 0 | J184: 0 | K184: Х
B185: местный бюджет | C185: =SUM(D185:J185) -> 400 | D185: =SUM(D188) -> 0 | E185: =SUM(E188) -> 400 | F185: 0 | G185: 0 | H185: 0 | I185: 0 | J185: 0
A186: Мероприятие 15 - Осуществление сноса аварийных домов и высвобождение земельных участков под новое жилищное строительство
B187: Всего, из них | C187: =SUM(D187:J187) -> 400 | D187: =SUM(D188) -> 0 | E187: =SUM(E188) -> 400 | F187: 0 | G187: 0 | H187: 0 | I187: 0 | J187: 0 | K187: 41
B188: местный бюджет | C188: =SUM(D188:J188) -> 400 | D188: 0 | E188: 400 | F188: 0 | G188: 0 | H188: 0 | I188: 0 | J188: 0
A189: Подпрограмма 5 : Содержание и капитальный ремонт общего имущества муниципального жилищного фонда на территории Североуральского городского округа
B190: Всего по подпрограмме 5, в том числе | C190: =C191 -> 122999.4 | D190: =D191 -> 9057 | E190: =E191 -> 15187 | F190: 18991.4 | G190: 19941 | H190: 19941 | I190: 19941 | J190: 19941 | K190: Х
B191: местный бюджет | C191: =SUM(D191:J191) -> 122999.4 | D191: =SUM(D203) -> 9057 | E191: =SUM(E203) -> 15187 | F191: 18991.4 | G191: 19941 | H191: 19941 | I191: 19941 | J191: 19941
A192: 1. Капитальные вложения
B193: Всего по направлению «Капитальные вложения», всего, в том числе | C193: =SUM(C194) -> 0 | D193: =SUM(D194) -> 0 | E193: 0 | F193: 0 | G193: 0 | H193: 0 | I193: 0 | J193: 0 | K193: Х
B194: местный бюджет | C194: 0 | D194: 0 | E194: 0 | F194: 0 | G194: 0 | H194: 0 | I194: 0 | J194: 0
A195: 1.1. Бюджетные инвестиции в объекты капитального строительства
B196: Бюджетные инвестиции в объекты капитального строительства всего, в том числе: | C196: =SUM(C197) -> 0 | D196: =SUM(D197) -> 0 | E196: 0 | F196: 0 | G196: 0 | H196: 0 | I196: 0 | J196: 0 | K196: Х
B197: местный бюджет | C197: =SUM(D197:J197) -> 0 | D197: 0 | E197: 0 | F197: 0 | G197: 0 | H197: 0 | I197: 0 | J197: 0
A198: 1.2. Иные капитальные вложения
B199: Всего, в том числе: | C199: 0 | D199: =SUM(C197) -> 0 | E199: 0 | F199: 0 | G199: 0 | H199: 0 | I199: 0 | J199: 0 | K199: Х
B200: местный бюджет | C200: =SUM(D200:J200) -> 0 | D200: 0 | E200: 0 | F200: 0 | G200: 0 | H200: 0 | I200: 0 | J200: 0
A201: 3 Прочие нужды
... 142 more rows

Sheet Лист2

Sheet Лист3
